bitfinex-derivatives/quotes_ETHF0:USTF0_20240922
["timestamp","ask_amount","ask_price","bid_price","bid_amount"]
[1727016143223,0.39048,2560.8,2560.5,0.39052]
[1727016143423,0.3905,2560.7,2560.4,2.796]
[1727016143626,0.39049,2560.8,2560.5,0.39052]
[1727016143818,0.39049,2560.8,2560.4,3.18653]
[1727016144126,0.39049,2560.8,2560.5,0.39052]
[1727016144316,0.39049,2560.8,2560.4,3.18653]
[1727016144519,0.39049,2560.8,2560.5,0.39052]
[1727016145321,0.39049,2560.8,2560.4,0.39053]
[1727016145523,0.3905,2560.7,2560.2,3.2078]
[1727016145718,0.3905,2560.7,2560.3,2.797]
[1727016145926,0.3905,2560.7,2560.4,0.39053]
[1727016146723,0.6652,2560.9,2560.3,2.797]
[1727016146929,0.3905,2560.7,2560.3,2.797]
[1727016147226,0.39054,2560.4,2560.1,0.39058]
[1727016147448,0.6973,2560.3,2559.8,3.2078]
[1727016147620,0.6973,2560.3,2559.8,3.18763]
[1727016147621,0.39059,2560.1,2559.8,3.18763]
[1727016147930,3.2078,2560.0,2559.2,0.19176374]
[1727016148128,3.8505,2560.0,2559.2,0.19176374]
[1727016148328,3.8505,2560.0,2559.6,0.39065]
[1727016148329,4.24111,2560.0,2559.6,0.39065]
[1727016148631,4.24111,2560.0,2559.4,3.2078]
[1727016148819,4.24111,2560.0,2559.6,0.39066]
[1727016149023,4.24111,2560.0,2559.7,0.39065]
[1727016149423,0.39064,2559.8,2559.4,3.59848]
[1727016149625,1.07655,2559.7,2559.4,3.59848]
[1727016149827,1.3565,2559.7,2559.4,3.2078]
[1727016150127,1.74715,2559.7,2559.4,3.2078]
[1727016150438,1.74715,2559.7,2559.1,0.39073]
[1727016150439,0.39068,2559.5,2559.1,0.39073]
[1727016150628,0.39067,2559.6,2559.2,0.39072]
[1727016151128,0.39068,2559.5,2559.2,0.39072]
[1727016151326,0.39068,2559.5,2559.1,0.39073]
[1727016151521,0.39069,2559.4,2559.0,0.39074]
[1727016151729,0.39069,2559.5,2559.1,0.39074]
[1727016152031,0.39067,2559.6,2558.9,2.798]
[1727016152235,3.2078,2559.3,2558.8,2.798]
[1727016152429,3.2078,2559.3,2558.9,0.39076]
[1727016152430,0.39072,2559.3,2558.9,0.39076]
[1727016153228,3.2078,2559.3,2558.5,4.102]
[1727016153435,3.2078,2559.3,2558.5,4.49282]
[1727016153728,0.39078,2558.9,2558.5,4.49282]
[1727016153925,0.6864,2558.8,2558.5,4.102]
[1727016154121,0.6864,2558.8,2558.5,0.39083]
[1727016154334,1.07718,2558.8,2558.4,3.18884]
[1727016154531,1.07718,2558.8,2558.1,0.20017586]
[1727016154532,7.1158,2558.7,2558.1,0.39088]
[1727016154841,0.39084,2558.5,2557.8,6.0058]
[1727016155136,0.39082,2558.6,2558.2,0.39087]
[1727016155323,3.2078,2558.7,2557.8,3.2078]
[1727016155527,1.6634,2558.8,2557.8,0.39093]
[1727016155528,0.39087,2558.3,2557.8,0.39093]
[1727016155726,3.2078,2558.4,2557.7,2.798]
[1727016156134,3.2078,2558.4,2558.1,0.39088]
[1727016156433,3.2078,2558.4,2558.0,0.3909]
[1727016156629,3.2078,2558.4,2558.1,0.39089]
[1727016156836,3.2078,2558.4,2558.1,0.39088]
[1727016157141,3.2078,2558.4,2558.2,0.39087]
[1727016157328,3.2078,2558.4,2558.1,0.39088]
[1727016157533,3.2078,2558.4,2558.2,0.39087]
[1727016157827,0.6864,2558.8,2557.9,0.684]
[1727016157828,3.8942,2558.8,2558.4,0.39084]
[1727016158029,4.28499,2558.8,2558.3,0.39085]
[1727016158237,3.8942,2558.8,2558.4,0.39084]
[1727016158827,4.28499,2558.8,2558.3,0.39086]
[1727016159031,3.8942,2558.8,2558.4,0.39084]
[1727016159237,3.8942,2558.8,2558.5,0.39082]
[1727016159435,3.8942,2558.8,2558.2,2.799]
[1727016159633,3.8942,2558.8,2558.5,0.39083]
[1727016159935,3.8942,2558.8,2558.2,0.39087]
[1727016160141,0.39081,2558.7,2558.2,0.39087]
[1727016160439,4.28499,2558.8,2558.3,0.39085]
[1727016160739,0.39083,2558.5,2558.0,3.2109]
[1727016161331,0.39083,2558.5,2557.9,3.21091]
[1727016161332,1.04925,2558.4,2557.9,3.21091]
[1727016161539,1.3551,2558.4,2557.9,2.82]
[1727016161742,1.3551,2558.4,2558.0,0.39091]
[1727016161934,1.3551,2558.4,2558.1,0.39089]
[1727016162131,0.6584,2558.4,2558.1,0.39089]
[1727016162328,0.6584,2558.4,2557.8,4.99224]
[1727016162647,3.2078,2557.9,2557.8,2.18721]
[1727016162836,6.0288,2557.9,2556.4,3.2078]
[1727016163142,0.39101,2557.4,2556.9,0.39107]
[1727016163329,3.2078,2557.6,2556.4,3.39964235]
[1727016163330,3.2078,2557.3,2556.4,3.39964235]
[1727016163842,3.2078,2557.3,2557.1,0.39104]
[1727016164439,3.2078,2557.3,2556.5,7.97411]
[1727016164834,3.2078,2557.7,2557.1,3.2078]
[1727016165039,3.2078,2557.7,2557.2,0.6917]
[1727016165347,3.2078,2557.7,2557.4,0.39098]
[1727016165538,3.2078,2557.7,2557.5,0.39098]
[1727016165739,3.2078,2557.7,2557.4,0.39099]
[1727016166638,3.2078,2557.7,2557.5,0.39098]
[1727016167046,3.2078,2557.7,2557.6,0.39097]
[1727016167947,3.2078,2558.0,2557.3,0.97754]
[1727016168143,3.2078,2558.0,2557.4,3.2078]
[1727016168348,3.2078,2558.0,2557.7,0.39094]
[1727016168544,3.59872,2558.0,2557.7,0.39094]
[1727016168840,0.39096,2557.7,2557.2,0.6917]
[1727016169036,3.2078,2557.5,2557.4,0.39099]
[1727016169237,3.2078,2557.8,2557.4,0.391]
[1727016169444,3.2078,2557.8,2557.2,0.6917]
[1727016169445,3.59874,2557.8,2557.5,0.39098]
[1727016169644,3.2078,2557.8,2557.3,0.391]
[1727016169843,0.39097,2557.6,2557.3,0.391]
[1727016170044,3.2078,2557.8,2557.2,0.6917]
[1727016170249,3.2078,2557.8,2557.7,0.39095]
[1727016170842,3.2078,2557.8,2557.7,4.30055]
[1727016171144,0.7044,2558.1,2557.7,3.9096]
[1727016171145,3.2078,2558.1,2557.7,3.9096]
[1727016171346,3.2078,2558.1,2558.0,0.39091]
[1727016172646,3.2078,2558.4,2558.3,0.39086]
[1727016173045,3.2078,2558.7,2558.0,4.18506]
[1727016173348,3.2078,2558.7,2558.1,5.04525642]
[1727016173550,3.59861,2558.7,2558.4,0.39084]
[1727016173735,0.39084,2558.5,2558.2,0.39087]
[1727016173940,3.59865,2558.4,2558.1,0.39088]
[1727016174135,3.2078,2558.4,2557.9,0.6762]
[1727016174347,0.39088,2558.2,2557.9,1.06711]
[1727016174854,0.39088,2558.2,2557.9,0.39092]
[1727016175053,1.04677,2558.3,2558.0,0.39091]
[1727016175247,0.6559,2558.3,2558.1,0.39089]
[1727016175446,0.6559,2558.3,2557.7,2.821]
[1727016175447,1.04676,2558.3,2557.7,2.821]
[1727016175648,3.2078,2558.4,2557.9,3.2078]
[1727016175852,0.97686,2559.1,2558.5,0.39082]
[1727016175853,3.2078,2558.7,2558.5,0.39082]
[1727016176245,3.5986,2558.7,2558.4,0.39084]
[1727016176449,3.2078,2558.7,2558.1,0.6689]
[1727016176755,3.5986,2558.7,2558.4,0.39084]
[1727016177044,0.39084,2558.5,2558.1,1.05978]
[1727016177243,3.2078,2558.4,2558.1,0.39088]
[1727016177458,3.59865,2558.4,2558.1,0.39088]
[1727016177648,3.2078,2558.4,2558.2,0.39087]
[1727016177952,3.2078,2558.4,2558.3,0.39086]
[1727016178546,3.2078,2558.4,2558.2,0.39087]
[1727016178743,3.2078,2558.4,2558.3,0.39086]
[1727016179745,3.2078,2558.4,2558.0,0.6928]
[1727016179746,3.2078,2558.4,2558.2,0.39087]
[1727016180752,7.50745,2558.4,2558.1,0.39088]
[1727016180957,3.2078,2558.4,2558.0,1.0837]
[1727016181347,4.18495,2558.4,2557.9,4.102]
[1727016181545,4.18495,2558.4,2557.7,0.39094]
[1727016181546,0.39091,2558.0,2557.7,0.39094]
[1727016181747,0.39088,2558.2,2557.9,0.39091]
[1727016181947,1.06967,2558.3,2558.0,0.3909]
[1727016182155,1.06967,2558.3,2557.7,6.0288]
[1727016182156,0.6788,2558.3,2557.7,6.0288]
[1727016182349,3.2078,2558.4,2557.7,8.76721739]
[1727016182550,3.2078,2558.4,2558.2,0.39086]
[1727016182745,3.2078,2558.4,2557.7,8.96680054]
[1727016183052,3.2078,2558.4,2558.3,0.39086]
[1727016183244,3.2078,2558.4,2557.9,3.2078]
[1727016183450,3.2078,2558.4,2558.3,0.39086]
[1727016183649,3.2078,2558.4,2558.0,0.97725]
[1727016183650,3.2078,2558.7,2558.0,5.82493001]
[1727016183849,3.2078,2558.7,2558.6,0.39081]
[1727016185544,7.1158,2558.7,2558.6,0.39081]
[1727016185944,7.1158,2558.7,2558.2,3.906]
[1727016186152,0.39082,2558.6,2558.4,0.39084]
[1727016186860,3.5986,2558.7,2558.5,0.39082]
[1727016187654,0.39083,2558.6,2558.2,0.6982]
[1727016187953,3.2078,2558.7,2558.4,0.39083]
[1727016188463,0.39082,2558.6,2558.4,0.39083]
[1727016189258,0.97692,2559.0,2558.4,0.39083]
[1727016189462,1.01402896,2559.6,2558.4,0.39083]
[1727016189463,1.00475613,2560.5,2560.3,3.2078]
[1727016189662,3.0464243,2562.1,2560.5,0.9763]
[1727016189663,0.596638,2561.8,2560.5,0.9763]
[1727016189956,0.596638,2562.1,2561.5,3.2078]
[1727016190558,0.596638,2562.1,2561.5,3.59816]
[1727016190758,0.596638,2562.1,2561.6,0.39036]
[1727016191259,0.596638,2562.1,2561.5,3.2078]
[1727016191458,0.596638,2562.1,2561.8,3.59812]
[1727016191759,0.596638,2562.1,2561.8,3.2078]
[1727016191953,0.596638,2562.1,2561.8,3.59812]
[1727016192348,0.596638,2562.1,2561.8,3.2078]
[1727016192546,0.596638,2562.1,2561.8,3.59812]
[1727016194153,0.596638,2562.1,2562.0,3.2078]
[1727016194348,0.596638,2562.1,2561.8,0.39032]
[1727016194550,0.596638,2562.1,2562.0,3.2078]
[1727016194951,10.499838,2562.1,2561.5,3.2078]
[1727016195154,0.596638,2562.1,2561.6,0.39036]
[1727016195955,0.39033,2561.8,2560.6,0.41972011]
[1727016196151,0.39039,2561.4,2560.7,3.59829]
[1727016196355,0.39039,2561.4,2560.7,8.618217]
[1727016196665,0.39039,2561.4,2560.7,3.59829]
[1727016196848,3.2078,2561.6,2560.8,0.39048]
[1727016196849,0.39038,2561.5,2560.8,0.39048]
[1727016197054,0.39039,2561.4,2560.7,3.59829]
[1727016197355,0.39038,2561.5,2560.8,0.39048]
[1727016197959,41.19033,2561.8,2560.8,0.39048]
[1727016198165,0.39039,2561.4,2560.8,0.39048]
[1727016198458,3.2078,2561.7,2560.7,3.2078]
[1727016199055,0.3904,2561.4,2560.8,0.39048]
[1727016199561,0.39036,2561.6,2561.0,0.39044]
[1727016199748,3.2078,2561.7,2561.1,3.2078]
[1727016199749,3.59814,2561.7,2561.1,3.2078]
[1727016199950,0.39034,2561.7,2561.1,3.59822]
[1727016200253,3.8985,2562.0,2561.1,3.2078]
[1727016200458,0.39038,2561.5,2561.1,3.2078]
[1727016200649,3.2078,2561.7,2561.1,3.2078]
[1727016200848,0.39041,2561.3,2561.1,3.2078]
[1727016201061,7.1118,2561.7,2561.1,3.2078]
[1727016201356,0.39042,2561.2,2561.1,3.2078]
[1727016201752,3.9048,2561.2,2561.1,3.2078]
[1727016203366,0.39039,2561.4,2561.1,3.2078]
[1727016203755,4.29439,2561.4,2561.1,3.2078]
[1727016204263,4.29439,2561.4,2560.8,3.59827]
[1727016204468,0.39039,2561.4,2560.9,0.39045]
[1727016204656,3.2078,2561.7,2561.1,0.39043]
[1727016204657,0.39036,2561.6,2561.1,0.39043]
[1727016204856,0.39037,2561.5,2561.0,0.39044]
[1727016205058,3.2078,2561.7,2560.9,5.1341844]
[1727016205360,4.18367,2561.7,2560.9,3.2078]
[1727016205659,4.18367,2561.7,2560.7,4.102]
[1727016205660,0.39043,2561.2,2560.7,4.49249]
[1727016205862,0.39043,2561.2,2561.0,3.2078]
[1727016206261,0.39043,2561.1,2561.0,3.2078]
[1727016206661,4.29523,2561.1,2561.0,3.2078]
[1727016207063,4.29523,2561.1,2560.7,0.39049]
[1727016207064,0.39043,2561.1,2560.7,0.39049]
[1727016207360,0.39043,2561.1,2561.0,3.2078]
[1727016207764,1.0519,2561.4,2561.0,3.2078]
[1727016207962,0.39043,2561.1,2561.0,3.2078]
[1727016208360,4.29523,2561.1,2561.0,3.2078]
[1727016208964,0.39043,2561.1,2561.0,3.2078]
[1727016209164,0.39042,2561.2,2561.0,3.2078]
[1727016209471,0.39043,2561.1,2561.0,3.2078]
[1727016210567,0.39043,2561.2,2561.0,3.2078]
[1727016210760,1.0519,2561.4,2561.0,3.2078]
[1727016210964,0.39041,2561.3,2561.0,3.2078]
[1727016211359,0.39038,2561.5,2561.1,0.39042]
[1727016211560,3.2078,2561.7,2561.0,3.2078]
[1727016211761,0.39042,2561.2,2561.0,3.2078]
[1727016211966,0.39041,2561.3,2561.0,3.2078]
[1727016212169,0.39042,2561.2,2561.0,3.2078]
[1727016212874,0.39041,2561.3,2561.0,3.2078]
[1727016213075,0.39042,2561.2,2561.0,3.2078]
[1727016213268,0.39041,2561.3,2561.0,3.2078]
[1727016213662,0.39041,2561.3,2561.0,3.59825]
[1727016213972,0.39041,2561.3,2561.0,3.2078]
[1727016214676,0.3904,2561.4,2561.0,3.59825]
[1727016214876,0.39041,2561.3,2561.0,3.59825]
[1727016215261,0.39041,2561.3,2561.0,3.2078]
[1727016215570,0.9759,2561.6,2561.0,3.2078]
[1727016215571,0.39043,2561.1,2561.0,3.2078]
[1727016216672,0.97596,2561.5,2561.0,3.2078]
[1727016216875,0.39042,2561.2,2561.0,3.2078]
[1727016217178,0.39043,2561.2,2561.0,3.2078]
[1727016217383,0.39043,2561.1,2561.0,3.2078]
[1727016218671,0.39043,2561.2,2561.0,3.2078]
[1727016219479,0.39043,2561.1,2561.0,3.2078]
[1727016220864,0.97598,2561.4,2561.0,3.2078]
[1727016221964,0.39043,2561.1,2561.0,3.2078]
[1727016223184,0.39041,2561.3,2561.0,3.59824]
[1727016223388,0.39039,2561.4,2561.1,0.39043]
[1727016223779,0.39039,2561.4,2561.1,0.39042]
[1727016224079,0.39038,2561.5,2561.1,0.39042]
[1727016224480,0.39038,2561.5,2561.0,3.2078]
[1727016224787,0.39038,2561.5,2561.2,0.39042]
[1727016224985,0.39039,2561.4,2561.1,0.39042]
[1727016227088,0.39038,2561.5,2561.2,0.39042]
[1727016227390,0.97589,2561.7,2561.4,0.39038]
[1727016227391,0.39034,2561.7,2561.4,0.39038]
[1727016227791,0.39034,2561.7,2561.5,0.39037]
[1727016227991,1.1355,2562.2,2561.5,0.39037]
[1727016227992,1.1355,2562.2,2561.6,3.2078]
[1727016228182,1.1154,2562.3,2561.9,3.2078]
[1727016228376,1.1154,2562.3,2562.0,0.39028]
[1727016228377,0.39026,2562.3,2562.0,0.39028]
[1727016228584,2.2509,2562.7,2561.9,3.2078]
[1727016228782,0.39028,2562.1,2561.9,3.2078]
[1727016229085,0.39029,2562.1,2561.9,3.2078]
[1727016229288,0.39025,2562.3,2562.0,0.39029]
[1727016229591,0.39024,2562.4,2562.1,0.39028]
[1727016229779,0.39024,2562.4,2562.0,0.39028]
[1727016230383,0.39023,2562.5,2562.2,0.39026]
[1727016230587,0.39024,2562.4,2562.1,0.39027]
[1727016231483,0.39025,2562.3,2561.9,3.2078]
[1727016231784,2.2509,2562.7,2562.2,0.39026]
[1727016231785,0.39023,2562.5,2562.2,0.39026]
[1727016231982,3.22641,2562.7,2562.1,0.39027]
[1727016231983,0.39024,2562.4,2562.1,0.39027]
[1727016232187,3.22641,2562.7,2562.2,0.39026]
[1727016232188,0.39023,2562.5,2562.2,0.39026]
[1727016232693,0.39023,2562.4,2562.1,0.39027]
[1727016233387,0.39024,2562.4,2562.1,0.39028]
[1727016233889,0.39023,2562.5,2562.1,0.39028]
[1727016234988,0.39023,2562.5,2562.1,0.39027]
[1727016235494,0.39024,2562.4,2562.1,0.39027]
[1727016235789,0.39024,2562.4,2562.0,8.42762062]
[1727016236087,0.39024,2562.4,2562.1,0.39027]
[1727016236294,0.39024,2562.4,2562.1,1.00033007]
[1727016236484,0.39024,2562.4,2562.1,0.39027]
[1727016237177,0.39024,2562.4,2562.1,3.59807]
[1727016238688,0.39026,2562.3,2562.1,0.39027]
[1727016239178,0.97554,2562.6,2562.0,3.269]
[1727016239377,0.39026,2562.3,2562.1,0.39028]
[1727016239594,0.39025,2562.4,2562.1,0.39027]
[1727016239888,0.39025,2562.4,2562.2,0.39026]
[1727016240085,0.39025,2562.4,2562.1,3.2078]
[1727016240282,0.39026,2562.3,2562.1,3.2078]
[1727016240478,3.2078,2562.5,2561.8,3.2078]
[1727016240793,0.39026,2562.3,2561.9,3.87907338]
[1727016240984,0.39027,2562.2,2562.0,0.39029]
[1727016242292,3.2078,2562.5,2562.0,0.39029]
[1727016242293,0.39029,2562.1,2562.0,3.269]
[1727016243192,0.97563,2562.3,2561.9,0.39031]
[1727016243489,3.2078,2562.5,2561.8,3.2078]
[1727016243490,0.39031,2561.9,2561.8,3.2078]
[1727016243687,0.39031,2561.9,2561.6,5.62205]
[1727016243688,0.39034,2561.7,2561.6,1.1297]
[1727016243889,0.39036,2561.6,2561.5,3.2078]
[1727016244093,0.39036,2561.6,2561.5,3.083]
[1727016244290,0.39036,2561.6,2561.5,6.2908]
[1727016244490,0.39035,2561.7,2561.5,10.58516]
[1727016244698,0.39035,2561.7,2561.5,6.68116]
[1727016244996,3.23828,2562.0,2561.5,6.2908]
[1727016245393,0.39036,2561.6,2561.5,6.2908]
[1727016245799,0.39036,2561.6,2561.5,10.58517]
[1727016246101,0.39035,2561.7,2561.5,6.68117]
[1727016246790,0.39034,2561.8,2561.6,0.39035]
[1727016246998,0.39035,2561.7,2561.5,3.2078]
[1727016247194,0.39035,2561.7,2561.5,3.59817]
[1727016247498,0.39035,2561.7,2561.5,3.2078]
[1727016247695,0.39036,2561.6,2561.5,3.2078]
[1727016247902,0.39035,2561.7,2561.5,3.59817]
[1727016248700,0.39034,2561.8,2561.6,0.39036]
[1727016248996,2.6528,2562.0,2561.8,0.39032]
[1727016249299,0.39032,2561.9,2561.7,0.39033]
[1727016249598,0.39032,2561.9,2561.8,3.2078]
[1727016251802,2.2625,2562.0,2561.8,3.2078]
[1727016252302,2.6528,2562.0,2561.8,3.59812]
[1727016253194,0.39033,2561.8,2561.6,0.39035]
[1727016253997,2.2625,2562.0,2561.7,0.39033]
[1727016253998,0.39032,2561.9,2561.7,0.39033]
[1727016254194,2.2625,2562.0,2561.8,0.39033]
[1727016254399,2.6528,2562.0,2561.8,0.39033]
[1727016254593,1.1054,2562.0,2561.9,0.39031]
[1727016254797,0.39029,2562.1,2561.9,0.39031]
[1727016254995,0.3903,2562.0,2561.8,0.39032]
[1727016255199,3.2078,2562.4,2561.8,0.39032]
[1727016255393,0.39032,2561.9,2561.7,0.39033]
[1727016255894,0.39032,2561.9,2561.7,5.50128386]
[1727016256093,0.39032,2561.9,2561.7,0.39033]
[1727016256293,0.39032,2561.9,2561.8,0.39033]
[1727016256700,0.39031,2562.0,2561.8,0.39033]
[1727016256911,0.97567,2562.2,2561.8,0.39033]
[1727016257504,0.3903,2562.0,2561.8,0.39033]
[1727016258201,3.2078,2562.4,2561.8,0.39031]
[1727016258202,4.18342,2562.4,2561.8,0.39031]
[1727016258402,0.39029,2562.1,2561.9,0.39031]
[1727016258602,0.3903,2562.0,2561.8,0.39032]
[1727016259498,0.39031,2561.9,2561.7,5.56089344]
[1727016260903,0.97569,2562.2,2561.7,5.17056344]
[1727016261104,0.39032,2561.9,2561.7,5.56090344]
[1727016262690,0.97569,2562.2,2561.7,5.56090344]
[1727016262901,0.39032,2561.9,2561.7,5.56090344]
[1727016264609,0.39032,2561.9,2561.7,6.58017848]
[1727016266011,0.39032,2561.9,2561.8,0.39033]
[1727016266401,0.39032,2561.9,2561.8,3.59813]
[1727016267504,0.97569,2562.2,2561.8,3.59813]
[1727016267909,0.3903,2562.0,2561.9,0.39031]
[1727016268211,0.3903,2562.0,2561.8,3.59812]
[1727016268407,0.3903,2562.0,2561.8,4.61739504]
[1727016268605,0.3903,2562.0,2561.8,3.59812]
[1727016268808,0.3903,2562.0,2561.8,4.61739504]
[1727016269512,0.39031,2561.9,2561.8,4.61739504]
[1727016270207,0.39031,2561.9,2561.8,4.22707504]
[1727016271412,0.39031,2561.9,2561.8,4.8372355]
[1727016272110,0.39031,2561.9,2561.8,5.2275655]
[1727016272312,0.3903,2562.0,2561.8,5.53485385]
[1727016272613,0.3903,2562.0,2561.9,1.02255271]
[1727016273003,0.3903,2562.0,2561.9,1.63268871]
[1727016273898,0.39029,2562.1,2561.9,2.02299871]
[1727016274110,0.97569,2562.2,2561.9,1.02255271]
[1727016274307,0.39026,2562.3,2562.0,1.02255271]
[1727016274508,0.39024,2562.4,2562.2,1.41280271]
[1727016275001,0.39024,2562.4,2562.3,1.02255271]
[1727016276305,0.39025,2562.3,2562.2,1.41280271]
[1727016276804,0.39025,2562.3,2562.2,1.00030566]
[1727016277004,0.39024,2562.4,2562.2,2.02295035]
[1727016277206,0.39024,2562.4,2562.3,1.02264469]
[1727016277405,0.39024,2562.4,2562.2,1.41289469]
[1727016277605,0.39024,2562.4,2562.3,1.02264469]
[1727016279813,0.39025,2562.3,2562.2,1.02264469]
[1727016280001,0.39025,2562.3,2562.2,1.63272547]
[1727016280612,1.36588,2562.3,2562.2,1.63272547]
[1727016280809,0.39027,2562.2,2562.1,1.02264469]
[1727016281012,0.39027,2562.2,2562.1,1.63275952]
[1727016281913,0.39027,2562.2,2562.1,1.93691305]
[1727016282113,0.39027,2562.2,2562.1,1.93689587]
[1727016282414,0.39027,2562.2,2562.1,0.61011483]
[1727016282617,0.39027,2562.2,2562.1,1.63283093]
[1727016282811,0.39027,2562.2,2562.1,1.0227161]
[1727016283118,0.39027,2562.2,2562.1,1.63283311]
[1727016283416,0.39027,2562.2,2562.1,1.93699534]
[1727016283605,4.29347,2562.2,2562.1,0.61011701]
[1727016283918,4.29347,2562.2,2562.1,1.63287777]
[1727016284110,4.29347,2562.2,2562.1,1.93700029]
[1727016285020,0.39027,2562.2,2562.1,1.93700029]
[1727016285618,0.39027,2562.2,2562.1,0.61011701]
[1727016285807,0.39027,2562.2,2562.1,1.63293477]
[1727016286008,0.39027,2562.2,2562.1,1.93704088]
[1727016287107,0.39027,2562.2,2562.1,5.14483941]
[1727016287307,0.39027,2562.2,2562.1,1.93703941]
[1727016287912,0.39027,2562.2,2562.1,1.93702442]
[1727016288821,0.39026,2562.3,2562.1,2.32730442]
[1727016289016,0.39026,2562.3,2562.2,1.63287202]
[1727016289322,0.39026,2562.3,2562.2,4.84067202]
[1727016289508,0.39026,2562.3,2562.2,1.63287202]
[1727016290119,0.39025,2562.4,2562.2,1.93694428]
[1727016290313,0.39025,2562.4,2562.2,1.41296901]
[1727016290509,0.39025,2562.4,2562.3,1.02270901]
[1727016291222,0.39025,2562.3,2562.1,1.52194368]
[1727016291410,0.39025,2562.3,2562.2,1.02277512]
[1727016291811,2.2751,2562.5,2562.2,1.93705615]
[1727016292115,0.39023,2562.4,2562.3,1.63286274]
[1727016292619,0.39023,2562.4,2562.3,1.02278158]
[1727016292824,0.39023,2562.4,2562.3,1.63283282]
[1727016293023,0.39023,2562.4,2562.3,1.02278158]
[1727016293223,2.66533,2562.5,2562.3,2.02307947]
[1727016293523,2.66533,2562.5,2562.3,1.02278158]
[1727016293732,0.39023,2562.4,2562.3,1.02278158]
[1727016294024,0.39023,2562.4,2562.3,1.6328245]
[1727016295310,2.2751,2562.5,2562.3,2.0230645]
[1727016295520,2.2751,2562.5,2562.3,4.62082158]
[1727016295718,2.66532,2562.5,2562.3,4.23058158]
[1727016295911,2.2751,2562.5,2562.3,4.62083158]
[1727016296416,2.66532,2562.5,2562.3,4.23058158]
[1727016296617,2.2751,2562.5,2562.3,4.62083158]
[1727016296821,0.39018,2562.8,2562.5,0.39021]
[1727016297025,4.20976389,2562.9,2562.5,1.41299666]
[1727016297221,4.20976389,2562.9,2562.5,1.02278666]
[1727016297421,0.3902,2562.7,2562.5,1.02278666]
[1727016297720,2.2093,2562.9,2562.5,1.02278666]
[1727016298023,0.3902,2562.6,2562.5,1.02278666]
[1727016298226,0.3902,2562.6,2562.5,1.632788]
[1727016300622,0.3902,2562.6,2562.4,1.02278666]
[1727016301127,3.18473,2562.9,2562.5,1.02278666]
[1727016301632,0.39022,2562.6,2562.5,1.02278666]
[1727016302128,0.39021,2562.6,2562.5,1.02278666]
[1727016303729,0.39022,2562.5,2562.4,1.02278666]
[1727016303920,0.39022,2562.5,2562.4,1.63279984]
[1727016304318,0.39022,2562.5,2562.4,0.61001318]
[1727016304524,0.39022,2562.5,2562.4,1.02230241]
[1727016304720,0.39022,2562.5,2562.4,1.63227245]
[1727016304922,0.39022,2562.5,2562.4,1.63226966]
[1727016305224,0.39022,2562.5,2562.4,1.63227288]
[1727016305530,0.39022,2562.5,2562.4,1.6322454]
[1727016305831,0.97546,2562.8,2562.4,0.6100105]
[1727016305832,0.39021,2562.6,2562.4,0.6100105]
[1727016306032,0.39021,2562.6,2562.5,1.02222493]
[1727016308330,0.3902,2562.7,2562.5,1.02222493]
[1727016308741,2.2093,2562.9,2562.5,1.02222493]
[1727016308742,0.3902,2562.6,2562.5,1.02222493]
[1727016309626,0.39019,2562.7,2562.5,1.02222493]
[1727016310140,2.2093,2562.9,2562.7,0.39018]
[1727016310522,2.2093,2562.9,2562.7,0.39019]
[1727016310727,2.2093,2562.9,2562.8,0.39017]
[1727016310928,2.2093,2562.9,2562.7,1.41240493]
[1727016311231,1.1032,2562.9,2562.8,0.39017]
[1727016311424,2.00046389,2563.3,2562.9,0.39015]
[1727016311732,0.39011,2563.3,2563.0,1.41236493]
[1727016312522,0.39012,2563.2,2563.0,1.41236493]
[1727016312730,0.39012,2563.2,2563.0,1.02222493]
[1727016313043,0.39013,2563.1,2563.0,1.02222493]
[1727016313335,0.39012,2563.2,2563.0,1.02222493]
[1727016313535,0.39012,2563.2,2562.9,7.41918493]
[1727016315428,0.3901,2563.3,2563.0,0.39014]
[1727016316244,0.39012,2563.2,2562.9,7.41917493]
[1727016316435,0.39012,2563.2,2562.9,6.39695]
[1727016317239,0.3901,2563.3,2562.9,7.02902493]
[1727016317429,1.1844,2563.5,2563.1,0.39012]
[1727016317735,2.00046389,2563.9,2563.5,0.39006]
[1727016317926,4.18279,2564.0,2563.4,6.0068]
[1727016317927,0.39003,2563.8,2563.4,6.0068]
[1727016318133,0.39003,2563.8,2563.6,0.39005]
[1727016318328,0.39001,2563.9,2563.7,0.39004]
[1727016318638,2.5973,2564.0,2563.5,1.0871]
[1727016318842,0.39001,2563.9,2563.5,2.10932493]
[1727016319136,0.39001,2563.9,2563.7,0.39004]
[1727016319340,2.5973,2564.0,2563.7,3.59784]
[1727016320229,2.2073,2564.0,2563.7,3.2078]
[1727016320543,0.39002,2563.9,2563.7,3.2078]
[1727016321029,0.39002,2563.9,2563.7,6.0068]
[1727016321627,0.39001,2563.9,2563.7,3.2078]
[1727016321835,0.39001,2563.9,2563.6,6.39685]
[1727016322741,0.39002,2563.8,2563.6,6.0068]
[1727016323140,2.2073,2564.0,2563.6,3.2078]
[1727016323335,0.97506,2563.8,2563.4,2.799]
[1727016323535,0.39009,2563.4,2563.3,6.0068]
[1727016324039,0.39008,2563.5,2563.3,6.0068]
[1727016324241,0.39008,2563.5,2563.3,3.2078]
[1727016324444,0.39007,2563.5,2563.3,3.2078]
[1727016324736,0.97506,2563.8,2563.3,3.2078]
[1727016324939,0.39008,2563.4,2563.3,3.2078]
[1727016325141,0.39008,2563.4,2563.2,2.798]
[1727016325142,0.9751,2563.7,2563.0,3.2078]